bitfinex/quotes_ETHUSD_20241129
["timestamp","ask_amount","ask_price","bid_price","bid_amount"]
[1732879257121,0.17030032,3577.9,3577.8,0.11287103]
[1732879257323,0.17030032,3578.0,3577.8,0.11287103]
[1732879257555,0.1,3577.7,3576.8,2.79575]
[1732879257721,0.1,3577.7,3577.5,2.79524]
[1732879258052,0.1,3577.7,3577.6,0.1093628]
[1732879258355,0.1,3577.7,3577.5,2.79524]
[1732879258571,0.27030032,3578.0,3577.6,2.9045228]
[1732879258736,0.17030032,3577.9,3577.7,2.79506]
[1732879259066,0.17030032,3578.1,3578.0,2.79485]
[1732879259264,0.17030032,3578.3,3578.1,2.79477]
[1732879259574,0.17030032,3578.2,3578.1,2.79477]
[1732879259922,0.27030032,3578.3,3578.1,2.79477]
[1732879260123,0.17030032,3578.2,3578.1,2.79477]
[1732879260439,0.27030032,3578.3,3578.1,2.79477]
[1732879260647,0.1,3578.3,3578.2,0.8089]
[1732879260816,0.27039383,3578.3,3578.2,0.8089]
[1732879261019,0.27039383,3578.3,3578.2,3.6036]
[1732879261020,0.17039383,3578.3,3578.2,3.6036]
[1732879261229,0.17039383,3578.3,3578.2,0.8089]
[1732879262154,0.1,3578.0,3577.7,3.57675]
[1732879262326,0.1,3578.0,3577.8,2.795]
[1732879262528,0.1,3578.0,3577.7,0.7817]
[1732879262742,0.27039383,3578.0,3577.8,2.79499]
[1732879263086,0.1,3578.0,3577.8,2.79499]
[1732879264442,0.17052983,3577.9,3577.8,2.79499]
[1732879265165,0.17052983,3577.9,3577.8,2.90424744]
[1732879265540,0.17052983,3577.9,3577.8,0.10925744]
[1732879265947,0.17052983,3577.9,3577.8,2.90426744]
[1732879266651,0.1,3578.0,3577.8,2.90426744]
[1732879266853,0.17060058,3577.9,3577.8,0.10925744]
[1732879267228,0.44356151,3577.9,3577.8,0.10925744]
[1732879267552,0.44356151,3577.9,3577.8,2.79501]
[1732879267726,0.44356151,3577.9,3577.8,2.90058519]
[1732879268472,0.17060058,3577.9,3577.8,2.90058519]
[1732879268706,0.17060058,3577.9,3577.8,4.94747319]
[1732879268992,0.17060058,3577.9,3577.8,4.91952671]
[1732879269192,0.17060058,3577.9,3577.8,4.27178519]
[1732879269664,0.27316906,3578.1,3577.9,3.34488]
[1732879269867,1.68601415,3578.4,3578.0,3.34485]
[1732879270078,1.68601415,3578.4,3578.0,2.90031003]
[1732879270283,0.44389982,3578.3,3578.0,2.90031003]
[1732879270609,0.44389982,3578.2,3578.0,2.90031003]
[1732879270898,0.27316912,3578.3,3578.1,2.79477]
[1732879271108,0.1,3578.1,3578.0,0.10546003]
[1732879271393,0.27076317,3578.1,3577.8,0.8212]
[1732879271558,0.17076317,3578.0,3577.8,0.8212]
[1732879271755,0.17076317,3577.9,3577.8,0.8212]
[1732879272434,0.17076317,3577.9,3577.8,4.16621]
[1732879272593,0.17076317,3577.9,3577.8,4.8902912]
[1732879272898,0.17076317,3577.9,3577.8,4.862342]
[1732879273306,0.17076317,3578.3,3578.0,0.55]
[1732879273594,0.1,3578.4,3578.0,0.55]
[1732879273813,0.17085067,3578.2,3578.0,0.55]
[1732879273965,0.17085067,3578.1,3578.0,3.34485]
[1732879275305,0.17085067,3578.1,3578.0,4.040948]
[1732879275600,0.4442112,3578.1,3578.0,3.34485]
[1732879277128,0.1,3578.4,3578.0,3.34485]
[1732879277519,0.27335695,3578.1,3578.0,3.34485]
[1732879277819,0.54670828,3578.1,3578.0,3.34485]
[1732879278011,0.71755286,3578.1,3578.0,3.34485]
[1732879278526,0.44420153,3578.1,3578.0,3.34485]
[1732879278931,0.71755286,3578.1,3578.0,3.34485]
[1732879279227,0.44420153,3578.1,3578.0,3.34485]
[1732879279387,0.71755286,3578.1,3578.0,3.34485]
[1732879280424,0.1,3578.0,3577.8,0.8212]
[1732879280588,0.44419591,3577.9,3577.8,0.8212]
[1732879280792,0.44423194,3577.9,3577.8,0.8212]
[1732879281097,0.1,3577.6,3577.2,0.55]
[1732879281287,0.8225,3577.4,3577.0,2.79556]
[1732879281483,0.17085844,3577.3,3577.2,2.79547]
[1732879281937,0.44423194,3577.3,3577.2,2.79547]
[1732879282115,0.44423194,3577.3,3577.2,0.10596489]
[1732879282319,0.17085844,3577.3,3577.2,0.10596489]
[1732879282517,0.44417002,3577.3,3576.9,2.79564]
[1732879282720,0.44417002,3577.2,3577.0,0.1060801]
[1732879283032,0.44417002,3577.1,3577.0,2.9017101]
[1732879283329,0.17085844,3577.1,3577.0,2.9017101]
[1732879283727,0.17085844,3577.1,3577.0,3.4517101]
[1732879284101,0.1,3577.4,3577.0,3.4517101]
[1732879284440,0.44398261,3577.3,3577.0,2.9017101]
[1732879284736,0.17076254,3577.2,3577.0,2.9017101]
[1732879285031,0.17076254,3577.1,3577.0,2.9017101]
[1732879286129,0.17076254,3577.1,3577.0,0.1060801]
[1732879286304,0.17076254,3577.1,3576.9,2.79564]
[1732879286503,0.17076254,3577.0,3576.9,2.79564]
[1732879288405,0.17076254,3577.3,3577.0,2.79563]
[1732879288608,0.17058889,3577.2,3577.0,2.79563]
[1732879288914,0.1,3577.4,3577.0,2.79563]
[1732879288915,0.17058889,3577.1,3577.0,2.79563]
[1732879290594,0.17058889,3577.3,3577.1,2.79552]
[1732879290796,0.1,3577.4,3577.1,2.79552]
[1732879290797,0.17058889,3577.2,3577.1,2.79552]
[1732879291212,0.17058889,3577.2,3577.0,2.79562]
[1732879291493,0.1,3577.4,3577.1,2.79556]
[1732879291833,0.17054793,3577.3,3577.2,2.79547]
[1732879294128,0.17054793,3577.3,3577.2,4.698979]
[1732879294523,0.2,3577.8,3577.4,2.79532]
[1732879294901,0.1,3577.6,3577.4,2.79527]
[1732879295113,0.17053165,3577.5,3577.4,2.79527]
[1732879296480,0.17053165,3577.5,3577.4,4.829981]
[1732879296615,0.17053165,3577.8,3577.6,4.13636]
[1732879296819,0.27285064,3578.3,3578.1,2.79472]
[1732879297117,0.37054251,3578.2,3578.0,2.79483]
[1732879297312,0.17054251,3578.1,3578.0,2.79483]
[1732879297713,0.17054251,3578.1,3577.8,2.79501]
[1732879297921,0.17054251,3578.0,3577.9,2.79493]
[1732879302472,0.1,3578.2,3578.1,2.79477]
[1732879303750,0.1,3578.4,3578.1,2.79477]
[1732879303951,0.1,3578.6,3578.4,2.79454]
[1732879304186,0.1,3578.6,3578.5,2.79446]
[1732879306570,0.1,3578.8,3578.6,2.79435]
[1732879306773,0.1,3578.7,3578.6,2.79435]
[1732879306987,0.1,3578.8,3578.6,2.79435]
[1732879307653,0.1,3578.7,3578.6,2.79435]
[1732879308774,0.1,3578.8,3578.6,2.79435]
[1732879309083,0.1,3578.7,3578.6,2.79435]
[1732879309449,0.1,3578.8,3578.6,2.79435]
[1732879309744,0.1,3579.0,3578.7,3.54491]
[1732879309969,0.1,3579.3,3579.0,2.79402]
[1732879310167,0.1,3579.1,3579.0,2.79402]
[1732879310350,0.2,3579.1,3579.0,2.79402]
[1732879310696,0.1,3579.3,3579.0,2.79402]
[1732879311180,0.1,3579.1,3579.0,2.79402]
[1732879311782,2.45081415,3579.4,3579.1,2.79399]
[1732879311987,0.2,3579.4,3579.2,2.79386]
[1732879312299,0.2,3579.4,3579.2,2.89849697]
[1732879312596,0.2,3579.4,3579.3,2.79384]
[1732879312739,0.2,3579.4,3579.3,2.89841943]
[1732879313447,0.1,3579.4,3579.3,2.89841943]
[1732879315715,1.58601415,3579.4,3579.3,0.10457943]
[1732879315913,2.11148457,3579.4,3579.3,0.10457943]
[1732879316221,0.1,3580.2,3579.3,1.48601415]
[1732879316417,0.8709,3580.3,3578.8,0.02793985]
[1732879316418,0.2,3580.0,3579.7,2.79347]
[1732879316573,0.2,3580.0,3579.8,0.10413164]
[1732879316770,0.2,3580.0,3579.7,2.79347]
[1732879316971,0.2,3580.0,3579.8,0.10412674]
[1732879317185,0.2,3580.0,3579.5,2.79366]
[1732879317633,0.2,3580.0,3579.6,2.89783177]
[1732879318595,0.2,3580.0,3579.6,0.10424177]
[1732879318800,0.2,3580.0,3579.7,2.79351]
[1732879319000,0.2,3580.0,3579.8,0.1040581]
[1732879319198,0.2,3580.0,3579.5,2.79363]
[1732879319399,0.1,3579.7,3579.6,0.10417314]
[1732879319617,0.1,3579.7,3579.6,2.89777314]
[1732879321474,0.1,3579.7,3579.6,0.10417314]
[1732879321878,0.78,3579.8,3579.4,2.79375]
[1732879321879,0.1,3579.5,3579.4,2.79375]
[1732879323326,0.1,3579.7,3579.6,2.7936]
[1732879324324,0.1,3579.5,3578.9,2.79408]
[1732879324619,0.2,3579.5,3579.2,2.79386]
[1732879325427,0.1,3579.5,3579.2,2.79386]
[1732879325715,0.2,3579.5,3579.3,2.79384]
[1732879327019,0.2,3579.5,3579.4,0.10428002]
[1732879327402,0.1,3579.5,3579.4,0.10428002]
[1732879327613,0.2,3579.5,3579.4,0.10428002]
[1732879328325,0.1,3579.5,3579.4,2.89804002]
[1732879329218,0.929,3579.9,3579.6,2.79359]
[1732879329391,0.1,3579.9,3579.7,0.10410745]
[1732879329585,0.1,3579.9,3579.8,2.79345]
[1732879329786,0.1,3579.9,3579.8,2.89742477]
[1732879330629,0.17013074,3580.1,3579.8,3.71132477]
[1732879330783,0.1,3580.0,3579.8,3.71132477]
[1732879331119,0.1,3580.0,3579.9,2.79337]
[1732879331320,0.1,3580.0,3579.9,2.89728725]
[1732879332218,0.1,3580.0,3579.9,0.10391725]
[1732879332526,0.1,3580.0,3579.8,2.79344]
[1732879332698,0.1,3580.0,3579.9,0.10391725]
[1732879333512,0.3702135,3580.2,3579.9,0.10391725]
[1732879333731,0.1,3580.0,3579.9,2.89728725]
[1732879336324,0.1,3580.0,3579.9,0.10391725]
[1732879337434,0.1,3580.0,3579.9,2.79337]
[1732879337735,0.1,3580.0,3579.9,2.89728725]
[1732879338123,0.27037993,3580.0,3579.9,2.89728725]
[1732879338327,0.1,3580.0,3579.9,2.89728725]
[1732879338522,0.27037993,3580.0,3579.9,2.89728725]
[1732879338723,0.27052499,3580.0,3579.9,2.89728725]
[1732879338927,0.2654082,3580.0,3579.9,2.89728725]
[1732879339438,0.17052499,3580.0,3579.9,2.89728725]
[1732879339734,0.2654082,3580.0,3579.9,2.89728725]
[1732879339894,0.17052499,3580.0,3579.9,2.89728725]
[1732879342211,0.19488321,3580.1,3579.9,2.89728725]
[1732879342414,0.19488321,3580.1,3579.9,0.10391725]
[1732879342747,0.2730667,3580.4,3579.5,0.7909]
[1732879342748,0.09488321,3580.4,3580.2,2.79314]
[1732879342903,0.44383171,3580.3,3580.2,2.79314]
[1732879343905,0.44383171,3580.3,3580.1,0.7829]
[1732879343906,0.44383171,3580.3,3580.1,2.79316]
[1732879344111,0.44383171,3580.2,3580.1,2.79316]
[1732879344345,0.17070467,3580.2,3580.1,2.79316]
[1732879344542,0.44383171,3580.2,3580.1,2.79316]
[1732879344704,0.17070467,3580.2,3580.1,2.79316]
[1732879344903,0.09488321,3580.4,3580.2,2.79309]
[1732879345099,0.09488321,3580.4,3580.3,2.79306]
[1732879345998,0.09488321,3580.4,3580.2,2.79309]
[1732879346203,0.09488321,3580.4,3580.3,2.79306]
[1732879347205,0.09488321,3580.6,3580.4,2.79291]
[1732879347426,0.09488321,3580.6,3580.3,2.79306]
[1732879347427,0.1,3580.7,3580.5,2.7929]
[1732879347618,0.09488321,3580.8,3580.5,5.58574]
[1732879347818,0.09488321,3580.8,3580.7,2.79275]
[1732879348047,0.26567854,3580.8,3580.5,2.79284]
[1732879348237,0.17079533,3580.7,3580.6,2.79282]
[1732879348938,0.27075764,3580.7,3580.6,2.79282]
[1732879350204,0.27075764,3580.7,3580.5,2.79287]
[1732879350447,0.17075764,3580.6,3580.5,2.79287]
[1732879350605,0.17075764,3580.6,3580.5,3.351454]
[1732879350805,0.17075764,3580.6,3580.5,2.79287]
[1732879353579,0.17075764,3580.6,3580.3,2.79301]
[1732879353726,0.17075764,3580.5,3580.4,2.79294]
[1732879354264,0.17075764,3580.6,3580.4,2.79294]
[1732879354471,0.17075764,3580.5,3580.4,2.79294]
[1732879354636,0.17075764,3580.6,3580.4,2.79294]
[1732879354834,0.17075764,3580.5,3580.4,2.79294]
[1732879356063,0.17062344,3580.5,3580.4,2.79294]
[1732879356847,0.17062344,3580.5,3580.4,2.89601965]
[1732879359338,0.17062344,3580.5,3580.4,3.54535761]
[1732879359652,0.34133918,3580.5,3580.4,3.54535761]
[1732879359849,0.17071574,3580.5,3580.4,3.54535761]
[1732879360185,0.17071574,3580.6,3580.4,4.34655761]
[1732879360477,0.17071562,3581.1,3581.0,2.79251]
[1732879360785,0.17071562,3581.1,3581.0,3.54551]
[1732879360939,0.17071822,3581.1,3581.0,3.64817614]
[1732879361483,0.17071822,3581.2,3581.1,2.79243]
[1732879362150,0.17071822,3581.2,3581.1,2.89503866]
[1732879362474,0.17071822,3581.3,3581.2,2.79236]
[1732879362843,0.17071822,3581.5,3581.4,2.7922]
[1732879363049,0.17071822,3581.9,3581.8,2.79189]
[1732879363237,0.17071822,3581.9,3581.8,2.89385642]
[1732879363437,0.17051745,3581.9,3581.8,2.89385642]
[1732879364282,0.09488321,3582.2,3581.8,2.89385642]
[1732879364283,0.27051745,3582.1,3581.8,2.89385642]
[1732879364578,0.09488321,3581.9,3581.8,0.10196642]
[1732879364757,0.26540066,3581.9,3581.7,2.79191]
[1732879364941,0.09488321,3581.9,3581.8,0.10192398]
[1732879365141,0.26540066,3581.9,3581.5,2.7921]
[1732879365453,0.09488321,3581.9,3581.8,0.10188645]
[1732879365799,0.26540066,3581.9,3581.8,0.10188645]
[1732879365953,0.09488321,3581.9,3581.7,2.79195]
[1732879366153,0.26540066,3581.9,3581.8,0.10188645]
[1732879366350,0.09488321,3581.9,3581.7,2.79195]
[1732879366571,0.09488321,3581.9,3581.8,0.10186849]
[1732879366880,0.09488321,3581.9,3581.7,2.79195]
[1732879367084,0.09488321,3581.9,3581.8,0.10186849]
[1732879367792,0.09488321,3581.9,3581.5,2.7921]
[1732879367981,0.09488321,3581.9,3581.8,0.10186849]
[1732879368158,0.09488321,3581.9,3581.7,2.79191]
[1732879368520,0.09488321,3581.9,3581.8,0.1018636]
[1732879368978,0.09488321,3581.9,3581.7,2.79191]
[1732879369182,0.09488321,3581.9,3581.8,0.1018636]
[1732879369647,0.09488321,3581.9,3581.5,2.79207]
[1732879369851,0.09488321,3581.9,3581.6,0.10197851]
[1732879370063,0.09488321,3581.9,3581.6,2.79204]
[1732879370249,0.09488321,3581.9,3581.7,2.89388105]
[1732879370458,0.19488321,3581.9,3581.7,0.10192105]
[1732879370668,0.19488321,3581.9,3581.3,2.79227]
[1732879370855,2.98673321,3581.9,3581.3,2.79227]
[1732879371065,0.92607564,3581.8,3581.4,0.10209343]
[1732879371360,3.54769,3581.8,3581.4,0.10209343]
[1732879371561,0.17027564,3581.7,3581.4,0.10209343]
[1732879371776,0.7558,3581.8,3581.4,0.10209343]
[1732879372261,0.92607564,3581.8,3581.4,0.10209343]
[1732879372583,0.92607564,3581.8,3581.4,2.89429343]
[1732879372808,0.92607571,3581.8,3581.4,2.89429343]
[1732879375001,0.1,3581.7,3581.4,0.10209343]
[1732879375186,0.27027571,3581.7,3581.4,0.10209343]
[1732879375366,0.27027571,3581.7,3581.2,2.79232]
[1732879375567,0.27027571,3581.7,3581.5,0.10203597]
[1732879375815,0.27027571,3581.7,3581.2,2.79232]
[1732879376302,3.06224571,3581.7,3581.3,0.1021509]
[1732879376508,2.89197,3581.7,3581.3,0.1021509]
[1732879376796,0.34064649,3581.6,3581.1,3.54803]
[1732879377022,2.79212,3581.5,3581.4,0.10209343]
[1732879377301,0.1,3581.1,3580.7,0.8281]
[1732879377457,0.27032311,3581.1,3580.7,0.8281]
[1732879377661,0.27032311,3581.1,3580.8,0.09907274]
[1732879377894,0.1,3581.2,3580.8,0.09907274]
[1732879378104,0.7873,3581.3,3580.9,2.79253]
[1732879378260,0.36520632,3581.4,3580.8,2.89173274]
[1732879379385,0.17032311,3581.3,3580.8,2.89173274]
[1732879379577,0.17032311,3581.3,3581.0,2.7925]
[1732879379977,0.17032311,3581.3,3581.1,0.0989003]
[1732879380382,0.1,3581.3,3581.1,0.0989003]
[1732879380797,0.27032311,3581.3,3581.1,0.0989003]
[1732879380980,0.27032311,3581.3,3580.8,2.79263]
[1732879381181,0.27032311,3581.3,3581.2,0.09884283]
[1732879381400,0.1,3581.3,3580.8,2.79264]
[1732879381704,0.27032311,3581.3,3580.9,2.79254]
[1732879381918,0.27032311,3581.3,3580.9,0.09901525]
[1732879382118,3.06273653,3581.3,3580.9,0.09901525]
[1732879382276,0.17040653,3581.2,3580.8,2.79265]
[1732879382480,0.27040653,3581.3,3580.9,0.09901525]
[1732879382974,0.27040653,3581.3,3580.9,2.89157525]
[1732879383173,0.27040653,3581.3,3580.9,0.09901525]
[1732879383483,0.17040653,3581.2,3580.9,0.09901525]
[1732879384072,0.17040653,3581.2,3580.8,0.02792381]
[1732879384294,0.17040653,3581.2,3580.9,0.09904284]
[1732879384486,0.1,3581.3,3580.9,2.89162284]
[1732879384772,0.17047869,3581.2,3580.9,3.54287512]
[1732879384974,0.17047869,3581.1,3580.9,3.54287512]
[1732879385169,0.17047869,3581.2,3580.9,3.54287512]
[1732879385399,0.17047869,3581.1,3580.9,3.54287512]
[1732879385617,0.1,3581.3,3580.9,0.75029512]
[1732879385618,0.17047869,3581.2,3580.9,0.75029512]
[1732879385912,0.17047869,3581.1,3580.9,0.09904284]
[1732879386112,0.17047869,3581.0,3580.9,0.09904284]
[1732879386279,0.17047869,3581.2,3580.8,2.79263]
[1732879386618,0.17047869,3581.1,3580.9,0.09904122]
[1732879386776,0.17047869,3581.0,3580.9,0.09904122]
[1732879387123,0.17047869,3581.2,3580.9,2.89163122]
[1732879387414,0.17047869,3581.1,3580.9,2.89163122]
[1732879387609,0.17047869,3581.0,3580.9,2.89163122]
[1732879388116,0.17047869,3581.2,3580.9,2.89163122]
[1732879388313,0.17047869,3581.1,3580.9,2.89163122]
[1732879388611,0.17047869,3581.0,3580.9,2.89163122]
[1732879388772,0.17047869,3581.0,3580.9,3.54566972]
[1732879388973,0.17047869,3581.3,3581.1,2.79238]
[1732879389202,0.17047869,3581.2,3581.1,2.79238]
[1732879389941,0.17047869,3581.2,3581.1,3.61178]
[1732879390105,0.09488321,3581.6,3581.2,2.79231]
[1732879390305,0.17047869,3581.5,3581.3,2.7922]
[1732879390551,0.17047869,3581.4,3581.3,2.7922]
[1732879392930,0.17047869,3581.4,3581.3,3.6201]
[1732879394114,0.09488321,3582.0,3581.3,3.6201]
[1732879394115,0.09488321,3582.0,3581.8,2.79183]
[1732879394315,0.17072349,3581.9,3581.8,2.79183]
[1732879395111,0.17072349,3581.9,3581.8,3.57363]
[1732879395551,0.09488321,3582.0,3581.8,3.57363]
[1732879395850,0.09488321,3582.0,3581.9,2.79181]
[1732879396153,0.17074021,3582.0,3581.9,2.79181]
[1732879396315,0.4439306,3582.0,3581.9,2.79181]
[1732879396927,0.4439306,3582.0,3581.9,3.431304]
[1732879397128,0.17074021,3582.0,3581.9,3.431304]
[1732879397745,0.4439306,3582.0,3581.9,3.431304]
[1732879397932,0.17074021,3582.0,3581.9,3.431304]
[1732879399452,0.27074021,3582.3,3582.2,2.79158]
[1732879400032,0.17074021,3582.3,3582.2,2.79158]
[1732879401254,0.17074021,3582.3,3582.0,2.79173]
[1732879401421,0.17074021,3582.2,3582.0,2.79173]
[1732879401613,0.1,3582.0,3581.9,2.7918]
[1732879401816,0.9046,3582.0,3581.9,2.7918]
[1732879402015,1.07534021,3582.0,3581.9,2.8900119]
[1732879402451,0.9046,3582.0,3581.9,2.8900119]
[1732879402653,1.07518708,3582.0,3581.9,0.0982119]
[1732879402950,1.07518708,3582.0,3581.8,2.79187]
[1732879403113,1.07518708,3582.0,3581.9,0.0982119]
[1732879403747,1.17007029,3582.0,3581.7,2.79196]
[1732879403953,0.17058708,3581.9,3581.7,2.79196]
[1732879404156,0.17058708,3581.8,3581.7,2.79189]
[1732879404453,0.17058708,3581.9,3581.6,2.79204]
[1732879404661,0.99948321,3582.0,3581.8,2.79189]
[1732879404957,0.17056965,3581.9,3581.8,2.79189]
[1732879405867,0.1705676,3581.9,3581.8,2.79189]
[1732879406314,0.1705676,3581.9,3581.5,0.8244]
[1732879406518,0.09488321,3581.7,3581.5,2.7921]
[1732879406716,0.26545081,3581.7,3581.5,2.7921]
[1732879408153,0.26545081,3581.7,3581.5,2.79206]
[1732879409162,0.26545081,3581.7,3581.5,5.58413]
[1732879409315,0.09488321,3581.7,3581.5,5.58413]
[1732879409515,0.26545741,3581.7,3581.5,2.79206]
[1732879411523,0.1705742,3581.6,3581.5,2.79206]
[1732879415082,0.1705742,3581.9,3581.8,3.59599]
[1732879415392,0.26545741,3582.3,3582.2,2.79158]
[1732879415524,0.1705742,3582.3,3582.2,2.79158]
[1732879415859,0.19488321,3582.6,3582.4,2.79136]
[1732879416062,0.1,3582.8,3582.6,2.79124]
[1732879416235,0.17067834,3582.7,3582.6,2.79124]
[1732879416429,0.1,3582.8,3582.7,2.79119]
[1732879416644,0.19488321,3583.0,3582.8,2.79111]
[1732879417165,0.19488321,3583.2,3582.9,2.88867083]
[1732879417667,0.09488321,3583.2,3583.0,2.79089]
[1732879418024,0.09488321,3583.2,3583.1,0.0974725]
[1732879418233,0.19488321,3583.2,3583.1,0.0974725]
[1732879418530,0.09488321,3583.2,3583.1,2.8883425]
[1732879419181,0.1,3583.4,3583.3,2.79072]
[1732879419359,0.19488321,3583.6,3583.4,2.79059]
[1732879419747,0.19488321,3583.6,3583.5,0.09724289]
[1732879420349,4.27623415,3584.0,3583.5,0.09724289]
[1732879420350,0.1,3583.8,3583.5,2.88780289]
[1732879420559,0.09488321,3583.9,3583.7,2.79041]
[1732879420759,0.1,3584.0,3583.7,2.79041]
[1732879420970,0.1,3584.0,3583.8,0.09707071]
[1732879420971,0.09488321,3583.9,3583.8,0.09707071]
[1732879421286,2.88513321,3583.9,3583.8,0.09707071]
[1732879421443,0.09488321,3583.9,3583.8,0.09707071]
[1732879421650,0.09488321,3583.9,3583.4,2.79059]
[1732879422086,0.09488321,3583.6,3583.5,0.09724289]
[1732879422465,0.09488321,3583.8,3583.5,2.88780289]
[1732879422921,0.09488321,3583.8,3583.6,2.79042]
[1732879423388,0.09488321,3583.8,3583.7,2.88724623]
[1732879423561,0.19488321,3584.0,3583.7,2.88724623]
[1732879424064,0.19488321,3584.0,3583.7,3.68254623]
[1732879424480,0.09488321,3583.8,3583.7,0.09683623]
[1732879424787,0.09488321,3583.8,3583.4,0.7976]
[1732879424953,0.09488321,3583.8,3583.7,0.09683623]
[1732879425154,0.09488321,3583.6,3583.4,3.58824]
[1732879425491,0.1,3584.0,3583.4,3.58824]
[1732879425492,0.09488321,3583.8,3583.5,2.79056]
[1732879425694,0.09488321,3583.6,3583.4,3.58824]
[1732879426187,0.09488321,3583.6,3583.4,3.58822]
[1732879426554,0.09488321,3583.6,3583.4,0.7976]
[1732879427108,0.09488321,3583.6,3583.4,3.58821]
[1732879427406,0.09488321,3583.5,3583.4,3.58821]
[1732879427604,0.09488321,3583.7,3583.5,2.79056]
[1732879428165,0.09488321,3583.5,3583.4,3.58821]
[1732879428600,0.09488321,3583.5,3583.4,0.7976]
[1732879429008,0.09488321,3583.5,3583.4,3.58824]
[1732879429206,0.09488321,3583.5,3583.4,0.7976]
[1732879429382,0.09488321,3583.5,3583.3,2.7907]
[1732879430791,0.09488321,3583.5,3583.4,2.79064]
[1732879431003,0.09488321,3583.7,3583.4,2.79064]
[1732879431303,0.09488321,3583.5,3583.4,3.424532]
[1732879432103,0.09488321,3583.5,3583.4,3.52154042]
[1732879432627,0.09488321,3583.5,3583.4,0.73090042]
[1732879432773,0.09488321,3583.5,3583.4,0.09700842]
[1732879433291,0.09488321,3583.5,3583.4,2.79064]
[1732879433481,0.09488321,3583.5,3583.4,2.88763062]
[1732879435435,0.09488321,3583.7,3583.4,2.88763062]
[1732879435743,0.09488321,3583.5,3583.4,2.88763062]
[1732879435923,0.09488321,3583.5,3583.4,3.53121768]
[1732879437886,0.09488321,3583.5,3583.4,0.09699062]
[1732879438118,0.09488321,3583.5,3583.2,2.79074]
[1732879438318,0.09488321,3583.5,3583.3,0.09704802]
[1732879438558,0.09488321,3583.5,3583.2,2.79074]
[1732879438759,0.09488321,3583.5,3583.4,0.09699062]
[1732879438918,0.09488321,3583.5,3583.3,0.09704802]
[1732879439117,0.09488321,3583.5,3583.2,2.79074]
[1732879439361,0.09488321,3583.5,3583.3,0.09704802]
[1732879439658,0.09488321,3583.5,3583.3,2.88776802]
[1732879439832,0.09488321,3583.5,3583.3,2.79072]
[1732879440163,0.09488321,3583.5,3583.4,0.09699062]
[1732879444465,0.17034822,3583.7,3583.4,3.57654]
[1732879444634,0.26523143,3583.9,3583.8,2.79033]
[1732879444832,0.09488321,3583.9,3583.8,2.79033]
[1732879445039,0.09488321,3583.9,3583.8,2.88702943]
[1732879445459,0.26523143,3583.9,3583.8,2.88702943]
[1732879446082,0.09488321,3584.1,3584.0,2.79017]
[1732879446292,0.26523143,3584.1,3584.0,2.79017]
[1732879446501,0.26523143,3584.1,3584.0,2.88675467]
[1732879446684,0.17034822,3584.1,3584.0,3.53461314]
[1732879447004,0.26523143,3584.1,3584.0,3.53461314]
[1732879447209,0.26523143,3584.1,3584.0,0.74444314]
[1732879447377,0.26523143,3584.1,3584.0,0.09658467]
[1732879447576,0.26523143,3584.1,3584.0,2.88675467]
[1732879447814,0.26523143,3584.1,3584.0,2.79017]
[1732879448020,0.26523143,3584.1,3584.0,2.88675467]
[1732879448371,0.26523143,3584.1,3584.0,3.53461314]
[1732879448691,0.17034822,3584.1,3584.0,4.30121314]
[1732879450429,0.09488321,3585.0,3584.9,2.78947]
[1732879450793,0.26562463,3585.0,3584.9,2.88539578]
[1732879452129,0.09488321,3585.0,3584.9,2.88539578]
[1732879453450,0.09488321,3585.0,3584.9,0.09592578]
[1732879453793,0.09488321,3585.0,3584.7,2.78963]
[1732879453992,0.09488321,3585.0,3584.9,0.09585776]
[1732879454225,0.09488321,3585.0,3584.8,0.09591511]
[1732879454433,0.09488321,3585.0,3584.9,0.09585776]
[1732879454790,0.09488321,3585.0,3584.8,2.78953]
[1732879454990,0.09488321,3585.0,3584.9,0.09585776]
[1732879456115,1.58089736,3585.0,3584.9,0.09585776]
[1732879456316,2.37429736,3585.0,3584.4,2.78984]
[1732879456498,0.09488321,3584.7,3584.5,2.88582719]
[1732879458140,0.09488321,3584.7,3584.6,2.78971]
[1732879458436,0.09488321,3584.7,3584.6,2.88555512]
[1732879459533,0.09488321,3584.9,3584.6,0.86774512]
[1732879459704,0.09488321,3584.7,3584.6,3.65745512]
[1732879459905,0.09488321,3584.7,3584.6,4.36906041]
[1732879460115,0.09488321,3585.0,3584.9,2.78947]
[1732879460312,0.1,3585.1,3584.9,2.78947]
[1732879460630,0.1,3585.1,3584.9,2.88513333]
[1732879461133,0.1,3585.1,3585.0,2.7894]
[1732879461437,0.1,3585.1,3585.0,2.88500598]
[1732879461602,0.09488321,3585.2,3585.1,3.55622]
[1732879461935,0.0768913,3585.5,3585.4,2.78908]
[1732879462134,0.0768913,3585.5,3585.4,2.88445661]
[1732879465317,0.0768913,3585.5,3585.4,3.67774326]
[1732879465702,0.0768913,3585.5,3585.4,3.64985661]
[1732879465902,0.0768913,3585.5,3585.4,4.29375527]
[1732879469449,0.0768913,3585.5,3585.4,3.52835527]
[1732879470010,0.0768913,3585.5,3585.4,3.55624136]
[1732879470259,0.0768913,3585.5,3585.4,4.30704136]
[1732879470909,0.0768913,3585.5,3585.4,4.85704136]
[1732879471111,0.0768913,3585.5,3585.4,10.91814633]
[1732879471315,0.0768913,3585.5,3585.4,10.89026024]
[1732879471539,0.19488321,3586.5,3585.5,3.55]
[1732879471746,0.19488321,3586.5,3586.3,2.78837]
[1732879471962,0.19488321,3586.5,3586.4,0.09443753]
[1732879472158,0.19488321,3586.5,3586.3,2.78837]
[1732879472361,0.19488321,3586.5,3586.4,0.09438089]
[1732879472634,0.19488321,3586.5,3586.2,2.78846]
[1732879472825,0.19488321,3586.5,3586.4,0.09438089]
[1732879473030,0.19488321,3586.5,3586.3,2.78832]
[1732879473031,0.19488321,3586.5,3586.3,0.09443819]
[1732879473235,0.19488321,3586.5,3586.4,2.88269089]
[1732879474848,0.09488321,3586.7,3586.4,2.88269089]
[1732879475064,0.1,3586.8,3586.6,2.78815]
[1732879475267,0.1,3587.0,3586.7,2.78807]
[1732879475478,0.09488321,3587.1,3586.7,0.09420899]
[1732879475682,0.1,3587.2,3586.8,2.78794]
[1732879475839,0.1,3587.2,3587.1,0.7632]
[1732879476180,0.14488321,3587.2,3587.1,0.09397984]